bitfinex/quotes_SOLUSD_20250721
["timestamp","ask_amount","ask_price","bid_price","bid_amount"]
[1753084653597,37.04000001,189.95,189.93,0.03]
[1753084653795,37.71000001,189.95,189.93,0.03]
[1753084654808,0.67,189.94,189.93,0.03]
[1753084655011,37.71000001,189.95,189.93,0.03]
[1753084656509,37.04000001,189.95,189.93,0.03]
[1753084656694,1e-08,189.95,189.94,0.7]
[1753084656897,37.04000001,189.95,189.94,0.7]
[1753084657902,37.04000001,189.95,189.93,0.03]
[1753084658296,37.04000001,189.95,189.93,0.73]
[1753084658497,37.04000001,189.95,189.93,5.99503334]
[1753084660002,37.71000001,189.95,189.93,0.03]
[1753084660790,37.04,189.94,189.93,0.03]
[1753084661619,37.04,189.94,189.93,0.73]
[1753084662910,36.99,189.94,189.93,0.73]
[1753084663408,36.99,189.94,189.93,0.03]
[1753084668418,36.99,189.94,189.93,0.75]
[1753084668721,36.99,189.94,189.93,0.03]
[1753084669020,36.99,189.94,189.93,0.75]
[1753084670821,36.99,189.94,189.93,6.01509766]
[1753084671126,36.99,189.94,189.93,9.46219473]
[1753084671823,37.02,189.94,189.93,9.46219473]
[1753084673202,1e-08,189.95,189.93,9.46219473]
[1753084673410,1e-08,189.95,189.94,4.16709707]
[1753084674229,1e-08,189.95,189.94,35.43191753]
[1753084677410,1e-08,189.95,189.94,31.98482046]
[1753084677610,1e-08,189.95,189.94,35.43191753]
[1753084689538,0.1,189.98,189.97,26.0]
[1753084689943,0.1,189.98,189.97,30.16709707]
[1753084691430,0.1,189.98,189.97,35.43108612]
[1753084693650,0.1,189.98,189.97,34.71108612]
[1753084695246,0.1,189.98,189.97,35.42108612]
[1753084698842,0.1,189.98,189.97,34.71108612]
[1753084699052,0.1,189.98,189.97,35.42108612]
[1753084702970,0.1,189.98,189.97,31.26398905]
[1753084703137,0.1,189.98,189.97,34.71108612]
[1753084704062,0.1,189.98,189.97,35.42108612]
[1753084704669,0.1,189.98,189.97,65.99415837]
[1753084704841,0.06,189.99,189.97,65.99415837]
[1753084704842,0.06,189.99,189.98,16.78468397]
[1753084705043,0.06,189.99,189.98,35.25654051]
[1753084706271,0.06,189.99,189.98,40.52025247]
[1753084707065,0.06,190.01,189.98,40.52025247]
[1753084707066,0.06,190.01,190.0,26.0]
[1753084707263,0.06,190.01,190.0,3.44709707]
[1753084707562,0.06,190.01,190.0,4.15709707]
[1753084708141,0.06,190.01,190.0,9.42025496]
[1753084708940,0.06,190.01,190.0,34.71025496]
[1753084709168,0.06,190.01,190.0,8.71025496]
[1753084709550,0.06,190.01,190.0,52.20493893]
[1753084710157,0.06,190.01,190.0,26.20493893]
[1753084713747,0.06,190.01,190.0,9.42025496]
[1753084719272,0.06,190.01,190.0,34.71025496]
[1753084719771,0.06,190.01,190.0,35.42025496]
[1753084720348,0.06,190.01,190.0,34.71025496]
[1753084721373,0.06,190.01,190.0,35.42025496]
[1753084721965,0.06,190.01,190.0,31.97315789]
[1753084722169,0.06,190.01,190.0,35.42025496]
[1753084729251,0.06,190.01,190.0,34.71025496]
[1753084731586,0.06,190.01,190.0,35.37025496]
[1753084734569,1e-08,190.01,190.0,52.15493893]
[1753084734768,0.06,190.05,190.04,42.78468397]
[1753084735072,0.06,190.05,190.04,46.23178104]
[1753084735255,0.06,190.05,190.04,4.10709707]
[1753084735454,0.06,190.05,190.04,5.26205009]
[1753084735656,0.06,190.05,190.04,8.70914716]
[1753084736572,0.06,190.05,190.04,9.36914716]
[1753084737158,0.06,190.05,190.04,5.26205009]
[1753084737358,0.06,190.05,190.04,8.70914716]
[1753084738174,0.06,190.05,190.04,9.36914716]
[1753084739167,0.06,190.05,190.04,8.70914716]
[1753084740066,8.5615,190.05,190.02,3.44709707]
[1753084740278,7.8415,190.05,190.03,8.70942407]
[1753084740464,7.8415,190.05,190.04,3.44709707]
[1753084740979,0.06,190.05,190.04,4.10709707]
[1753084741388,0.06,190.05,190.04,3.44709707]
[1753084742471,0.06,190.05,190.04,8.70914716]
[1753084742881,0.06,190.05,190.04,3.44709707]
[1753084743989,0.78,190.05,190.04,3.44709707]
[1753084744371,0.78,190.05,190.03,3.44709707]
[1753084744570,0.78,190.05,190.02,3.44709707]
[1753084745487,0.78,190.05,190.01,5.2628809]
[1753084745689,0.78,190.05,190.02,3.44709707]
[1753084745876,0.06,190.05,190.02,3.44709707]
[1753084746268,0.78,190.05,190.02,3.44709707]
[1753084746976,0.78,190.05,190.03,3.44709707]
[1753084747872,0.06,190.05,190.03,3.44709707]
[1753084748074,0.78,190.05,190.03,3.44709707]
[1753084748291,0.06,190.05,190.04,4.10709707]
[1753084748597,0.06,190.05,190.04,3.44709707]
[1753084750191,0.06,190.05,190.03,4.10709707]
[1753084750398,0.06,190.05,190.02,8.70963125]
[1753084750585,0.72,190.04,190.0,3.44709707]
[1753084750891,0.72,190.03,190.0,3.44709707]
[1753084753074,0.72,190.03,189.99,0.03]
[1753084753272,0.72,190.03,190.0,3.44709707]
[1753084754091,6.01183438,190.05,190.0,4.12709707]
[1753084754398,0.69,190.04,190.0,4.12709707]
[1753084754892,7.8858,190.02,189.99,0.03]
[1753084755472,0.69,190.01,189.99,0.03]
[1753084755683,3.44709707,190.0,189.99,0.03]
[1753084755893,26.0,189.96,189.95,0.03]
[1753084756198,44.6982,189.98,189.95,0.03]
[1753084756606,45.3882,189.98,189.95,0.03]
[1753084758888,7.7782,189.98,189.95,5.41598527]
[1753084759084,36.92,189.97,189.96,6.06598527]
[1753084759690,7.7408,190.02,189.96,31.38598527]
[1753084759877,0.06,190.05,190.01,5.38598527]
[1753084760213,0.06,190.05,190.04,5.38598527]
[1753084760379,0.06,190.05,190.03,5.26213713]
[1753084760587,0.06,190.05,190.04,5.38598527]
[1753084762394,0.06,190.05,190.03,5.26213713]
[1753084762584,0.06,190.05,190.04,5.38598527]
[1753084763384,37.69,190.05,190.0,10.64914316]
[1753084763590,0.69,190.04,190.0,5.38598527]
[1753084763906,0.69,190.03,190.0,5.38598527]
[1753084764791,0.69,190.02,189.99,26.0]
[1753084765108,42.38598527,190.05,189.96,10.6500168]
[1753084765109,37.61,190.01,189.96,10.6500168]
[1753084765277,45.2368,190.0,189.95,10.68046719]
[1753084765604,0.69,189.99,189.95,10.68046719]
[1753084767909,0.69,189.99,189.95,5.29448192]
[1753084768205,0.69,189.99,189.95,10.68046719]
[1753084769011,0.69,189.99,189.95,5.29448192]
[1753084769186,49.86996029,190.0,189.95,0.03]
[1753084769387,0.69,189.99,189.95,0.03]
[1753084770294,0.69,189.99,189.95,5.41598527]
[1753084770593,5.26345187,189.99,189.95,0.03]
[1753084770792,5.38598527,189.97,189.95,0.03]
[1753084771007,36.92,189.96,189.95,0.03]
[1753084771199,37.61,189.96,189.95,0.03]
[1753084772607,36.92,189.96,189.95,0.03]
[1753084773113,6.07598527,189.98,189.95,0.03]
[1753084773287,36.94,189.96,189.95,0.03]
[1753084774595,36.94,189.96,189.95,5.41598527]
[1753084774920,36.94,189.96,189.95,6.09598527]
[1753084776217,36.94,189.96,189.95,11.36052857]
[1753084776399,0.06,190.0,189.95,37.36052857]
[1753084776717,37.0,190.0,189.99,5.38598527]
[1753084777098,37.0,190.0,189.99,6.06598527]
[1753084777502,37.0,190.0,189.99,11.32942018]
[1753084779414,37.0,190.0,189.99,10.64942018]
[1753084780627,37.0,190.0,189.98,5.26371196]
[1753084780825,37.0,190.0,189.99,6.06598527]
[1753084781796,37.0,190.0,189.99,11.32942018]
[1753084783006,0.06,190.0,189.99,16.71540545]
[1753084790534,0.06,190.0,189.99,5.94343491]
[1753084790728,0.06,190.0,189.99,16.71540545]
[1753084791415,0.06,190.0,189.99,33.50008942]
[1753084793919,0.06,190.04,190.02,26.0]
[1753084794128,0.06,190.04,190.03,5.38598527]
[1753084794326,0.06,190.04,190.03,6.09598527]
[1753084796035,0.06,190.04,190.03,11.35831227]
[1753084797640,0.06,190.04,190.03,11.06634642]
[1753084799810,0.06,190.04,190.03,10.35634642]
[1753084800422,0.06,190.04,190.03,5.09401942]
[1753084800617,0.06,190.04,190.03,10.64831227]
[1753084800815,0.06,190.04,190.03,5.262327]
[1753084801043,0.06,190.04,190.03,5.38598527]
[1753084801044,8.8813,190.04,190.03,5.38598527]
[1753084803824,8.2213,190.04,190.03,5.38598527]
[1753084804933,8.2213,190.04,190.03,10.64831227]
[1753084805133,8.2213,190.04,190.03,5.262327]
[1753084805443,8.2213,190.04,190.03,10.64831227]
[1753084805616,8.2213,190.04,189.99,0.71]
[1753084805617,0.06,190.04,189.99,0.71]
[1753084805821,0.66,190.03,190.01,5.38598527]
[1753084806218,0.06,190.04,190.01,10.64878077]
[1753084806418,0.72,190.04,190.01,5.38598527]
[1753084806639,0.72,190.04,190.01,10.64882087]
[1753084806947,0.06,190.04,190.03,5.38598527]
[1753084809144,0.06,190.04,190.03,6.09598527]
[1753084809356,0.72,190.04,190.03,5.38598527]
[1753084809642,1.5081,190.03,189.99,5.38598527]
[1753084809946,7.2348,190.02,190.0,5.38598527]
[1753084810332,7.2348,190.02,189.98,5.26371196]
[1753084810645,6.5748,190.02,190.01,5.38598527]
[1753084811024,6.5748,190.02,189.99,0.71]
[1753084811214,6.5748,190.02,190.01,5.38598527]
[1753084811651,6.5748,190.02,190.01,5.41598527]
[1753084812222,1.5081,190.03,190.01,31.41598527]
[1753084812449,1.5081,190.03,190.02,10.6485892]
[1753084813741,1.5081,190.03,190.02,5.38598527]
[1753084813941,2.1881,190.03,190.01,26.03]
[1753084814141,0.68,190.02,190.01,0.03]
[1753084814327,0.68,190.02,190.01,5.41598527]
[1753084814638,1.5081,190.03,190.01,0.03]
[1753084814844,2.1881,190.03,190.01,5.41598527]
[1753084815427,2.1881,190.03,190.02,5.38598527]
[1753084815428,1.5081,190.03,190.02,5.38598527]
[1753084815839,2.1881,190.03,190.01,0.03]
[1753084816042,36.9,190.02,190.01,0.03]
[1753084816232,49.37588527,190.02,189.95,0.03]
[1753084816433,11.32886617,190.01,189.95,0.03]
[1753084816644,11.32886617,190.01,189.95,5.41598527]
[1753084816838,0.68,190.0,189.95,0.03]
[1753084817040,5.38598527,189.99,189.95,0.03]
[1753084817245,0.68,190.0,189.95,5.41598527]
[1753084817435,0.68,189.99,189.97,5.38598527]
[1753084817747,0.68,189.99,189.95,0.69]
[1753084818049,0.68,189.99,189.96,5.38598527]
[1753084818353,0.68,189.99,189.95,5.41598527]
[1753084818553,0.68,189.99,189.95,10.68026082]
[1753084818850,0.68,189.99,189.96,5.38598527]
[1753084819452,0.68,189.99,189.95,10.68026082]
[1753084819638,0.68,189.99,189.96,5.38598527]
[1753084819838,0.68,189.99,189.96,5.26414053]
[1753084820044,0.68,189.99,189.96,10.6501258]
[1753084821856,0.68,190.01,189.97,10.6497767]
[1753084822054,48.69588527,190.02,189.97,10.6497767]
[1753084822237,0.68,190.0,189.97,10.6497767]
[1753084822438,49.37588527,190.02,189.97,10.6497767]
[1753084822638,0.68,190.01,189.97,10.6497767]
[1753084822848,36.9,190.0,189.97,10.6497767]
[1753084823043,6.4099,190.02,189.98,5.38598527]
[1753084823263,6.4099,190.02,190.01,5.38598527]
[1753084823557,6.4099,190.02,189.99,5.38598527]
[1753084823764,0.68,190.01,189.98,5.38598527]
[1753084824060,0.68,190.01,189.99,5.38598527]
[1753084827060,6.4099,190.02,189.97,5.26391567]
[1753084827269,0.68,190.0,189.98,5.38598527]
[1753084827444,36.9,189.99,189.98,5.38598527]
[1753084827836,37.58,189.99,189.96,5.26422928]
[1753084828064,37.58,189.99,189.96,10.65021455]
[1753084828242,37.58,189.99,189.97,5.38598527]
[1753084828643,36.9,189.99,189.97,5.38598527]
[1753084828964,36.9,189.99,189.98,6.04598527]
[1753084829346,36.9,189.99,189.98,0.66]
[1753084829551,36.9,189.99,189.98,6.04598527]
[1753084829978,36.9,189.99,189.98,5.38598527]
[1753084830268,36.9,189.99,189.97,5.26398839]
[1753084830444,37.58,189.99,189.97,5.38598527]
[1753084830644,36.9,189.99,189.97,5.38598527]
[1753084831558,37.58,189.99,189.97,5.38598527]
[1753084833052,0.68,189.98,189.96,5.38598527]
[1753084833474,0.68,189.98,189.96,0.03]
[1753084835365,36.9,189.99,189.97,5.38598527]
[1753084835563,36.9,189.98,189.97,5.38598527]
[1753084836566,36.9,189.98,189.96,10.68023304]
[1753084838474,6.4099,190.02,189.97,6.04598527]
[1753084838661,36.9,190.01,189.98,0.66]
[1753084838856,36.9,190.01,190.0,5.38598527]
[1753084841265,36.9,190.01,190.0,10.64914316]
[1753084842253,36.9,190.01,190.0,11.30914316]
[1753084842963,36.9,190.01,190.0,10.64914316]
[1753084844373,36.9,190.01,190.0,5.26315789]
[1753084844562,36.9,190.01,190.0,10.64914316]
[1753084845770,36.9,190.01,190.0,5.38598527]
[1753084846672,36.9,190.01,190.0,4.88598527]
[1753084848652,1.5081,190.03,190.0,4.88598527]
[1753084848852,36.9,190.02,190.0,4.88598527]
[1753084850783,36.9,190.02,190.0,4.38598527]
[1753084851859,36.9,190.02,190.0,5.10598527]
[1753084852279,36.9,190.02,190.0,10.36911693]
[1753084852481,36.9,190.02,190.01,6.10598527]
[1753084852787,36.9,190.02,190.01,5.38598527]
[1753084853084,37.56,190.02,189.99,5.38598527]
[1753084853278,0.66,190.01,189.99,5.38598527]
[1753084853480,36.9,190.02,189.99,5.38598527]
[1753084853677,0.66,190.01,189.97,5.38598527]
[1753084853882,0.66,190.0,189.97,5.38598527]
[1753084854183,36.9,189.99,189.97,5.38598527]
[1753084854691,36.9,189.99,189.96,0.03]
[1753084855061,0.66,189.98,189.96,0.03]
[1753084859488,0.66,189.98,189.96,5.41598527]
[1753084860277,0.66,189.98,189.96,0.03]
[1753084861694,36.9,189.99,189.96,6.13598527]
[1753084862197,36.9,189.99,189.97,5.38598527]
[1753084864082,36.9,189.99,189.96,6.13598527]
[1753084864472,36.9,189.99,189.96,11.40018726]
[1753084864670,36.9,189.99,189.97,0.72]
[1753084866288,36.9,189.99,189.96,10.68018726]
[1753084866473,36.9,189.99,189.96,11.40018726]
[1753084867276,37.56,189.99,189.96,10.68018726]
[1753084867701,0.66,189.98,189.96,5.41598527]
[1753084867897,36.9,189.97,189.96,0.03]
[1753084868589,37.56,189.97,189.96,0.03]
[1753084868897,36.9,189.97,189.96,0.03]
[1753084870597,37.56,189.97,189.96,0.03]
[1753084870801,36.9,189.97,189.96,0.03]
[1753084874586,37.61,189.97,189.96,0.03]
[1753084875597,36.9,189.97,189.96,0.03]
[1753084876484,37.61,189.97,189.96,0.03]
[1753084878708,36.9,189.97,189.96,0.03]
[1753084879006,36.88,189.97,189.96,0.03]
[1753084880009,36.88,189.97,189.96,0.71]
[1753084880402,36.88,189.97,189.96,6.09598527]
[1753084881390,36.88,189.97,189.96,0.71]
[1753084881592,36.88,189.97,189.96,6.09598527]
[1753084881791,36.88,189.97,189.96,11.36025143]
[1753084882186,0.06,190.0,189.97,16.78468397]
[1753084882387,36.94,190.0,189.99,22.17066924]
[1753084882586,36.94,190.0,189.99,22.85066924]
[1753084882819,0.06,190.0,189.99,22.85066924]
[1753084882990,0.06,190.0,189.99,17.46468397]
[1753084883316,0.06,190.0,189.99,22.85066924]
[1753084884332,0.06,190.0,189.99,33.37510415]
[1753084884497,0.06,190.0,189.99,28.11410415]
[1753084887100,0.06,190.0,189.99,11.32942018]
[1753084888814,0.06,190.0,189.99,16.71540545]
[1753084889119,0.06,190.02,190.0,16.78468397]
[1753084889320,0.06,190.04,190.03,42.78468397]
[1753084889630,0.06,190.04,190.03,48.17066924]
[1753084889819,0.06,190.04,190.03,48.85066924]
[1753084890833,0.06,190.04,190.03,54.11299624]
[1753084896027,0.06,190.04,190.03,55.13425225]
[1753084896439,0.06,190.06,190.04,16.78468397]
[1753084896640,0.1,190.09,190.08,16.78468397]
[1753084896812,0.1,190.09,190.08,28.08274878]
[1753084897128,0.1,190.09,190.08,28.76274878]
[1753084897509,0.06,190.11,190.08,28.76274878]
[1753084897712,0.06,190.11,190.09,22.85066924]
[1753084897916,0.06,190.11,190.09,64.97133524]
[1753084898620,0.06,190.11,190.1,11.85302419]
[1753084899913,0.06,190.11,190.1,17.11341345]
[1753084900120,0.06,190.12,190.11,16.78468397]
[1753084900317,0.06,190.12,190.11,22.17066924]
[1753084900528,0.06,190.12,190.11,22.85066924]
[1753084901136,0.06,190.13,190.11,22.85066924]
[1753084901446,0.1,190.18,190.17,42.78468397]
[1753084901743,0.1,190.18,190.17,53.55665451]
[1753084902038,0.1,190.24,190.21,26.0]
[1753084902244,0.1,190.24,190.23,5.38598527]
[1753084902737,0.1,190.24,190.23,6.06598527]
[1753084902950,0.1,190.24,190.23,5.38598527]
[1753084903316,0.1,190.24,190.23,6.06598527]
[1753084903927,0.1,190.24,190.23,11.32277967]
[1753084905133,0.1,190.24,190.23,12.34296197]
[1753084905321,0.78,190.24,190.23,1.0201823]
[1753084910531,6.03651808,190.24,190.23,1.0201823]
[1753084910734,11.42250335,190.24,190.23,1.0201823]
[1753084911140,7.69491808,190.24,190.23,1.0201823]
[1753084911351,13.08090335,190.24,190.23,1.0201823]
[1753084914347,13.08090335,190.24,190.15,26.0]
[1753084914655,5.38598527,190.22,190.16,6.06598527]
[1753084914951,36.82,190.21,190.16,6.06598527]
[1753084915129,36.82,190.21,190.17,0.68]
[1753084915328,36.82,190.21,190.15,31.25899318]
[1753084915329,0.68,190.2,190.15,31.38598527]
[1753084915528,0.68,190.19,190.15,31.38598527]
[1753084915948,5.38598527,190.19,190.13,28.11015977]
[1753084916147,0.68,190.18,190.13,28.11015977]
[1753084916454,36.82,190.17,190.14,5.261]
[1753084916648,36.82,190.17,190.13,6.06598527]
[1753084917353,37.5,190.17,190.13,6.06598527]
[1753084917531,36.82,190.17,190.13,6.06598527]
[1753084918127,36.82,190.17,190.14,0.68]
[1753084918554,36.82,190.17,190.14,11.32698527]
[1753084918751,37.5,190.17,190.13,5.25955924]
[1753084918952,37.5,190.17,190.13,10.64554451]
[1753084919260,37.5,190.17,190.13,11.32554451]
[1753084919434,36.82,190.17,190.13,11.32554451]
[1753084919839,36.82,190.17,190.15,5.38598527]
[1753084920037,36.82,190.18,190.16,6.06598527]
[1753084920248,36.82,190.18,190.17,6.06598527]
[1753084920448,36.82,190.18,190.15,16.78468397]
[1753084920659,36.82,190.18,190.16,5.38598527]
[1753084920861,36.82,190.18,190.15,0.68]
[1753084921164,36.82,190.18,190.11,0.03]
[1753084921165,0.68,190.17,190.13,0.03]
[1753084921550,0.68,190.16,190.13,0.03]
[1753084921943,5.93883827,190.16,190.13,0.03]
[1753084922139,6.06598527,190.15,190.13,0.03]
[1753084922359,48.59818527,190.14,190.13,0.03]
[1753084922556,49.27818527,190.14,190.11,0.03]
[1753084922745,5.38598527,190.12,190.11,0.03]
[1753084923057,6.06598527,190.13,190.11,0.03]
[1753084923261,6.3922,190.14,190.11,0.03]
[1753084923466,36.82,190.12,190.11,0.71]
[1753084924463,36.82,190.12,190.11,11.35609783]
[1753084924667,1.5215,190.16,190.11,5.97011256]
[1753084924867,36.82,190.15,190.12,0.68]
[1753084925069,36.82,190.15,190.12,6.06598527]
[1753084925470,36.82,190.15,190.12,11.32569552]
[1753084925645,36.82,190.15,190.13,5.38598527]
[1753084926765,36.82,190.15,190.13,6.06598527]
[1753084927172,36.82,190.15,190.14,6.06598527]
[1753084928446,36.82,190.15,190.14,11.3252679]
[1753084930861,36.82,190.16,190.14,11.3252679]
[1753084931059,5.25765338,190.2,190.14,11.3252679]
[1753084931060,0.1,190.24,190.16,16.78468397]
[1753084931361,36.92,190.24,190.22,5.38598527]
[1753084931754,37.6,190.24,190.22,5.38598527]
[1753084931951,37.6,190.24,190.19,16.78468397]
[1753084932154,37.6,190.24,190.22,5.38598527]
[1753084933454,37.6,190.24,190.21,5.38598527]
[1753084934660,37.6,190.24,190.21,10.64328555]
[1753084934853,37.6,190.24,190.22,5.38598527]
[1753084934854,36.92,190.24,190.22,5.38598527]
[1753084935372,36.92,190.24,190.22,6.06598527]
[1753084935558,36.92,190.24,190.22,0.68]
[1753084935762,36.92,190.24,190.22,5.38598527]
[1753084936494,36.92,190.24,190.21,5.25730028]
[1753084936661,36.92,190.24,190.22,6.06598527]
[1753084936851,36.92,190.24,190.22,11.32303769]
[1753084937658,36.92,190.24,190.22,10.64303769]
[1753084937859,36.92,190.24,190.23,6.06598527]
[1753084938358,36.92,190.24,190.23,5.38598527]
[1753084939168,36.92,190.24,190.23,10.64277967]
[1753084939567,36.92,190.24,190.23,11.32277967]
[1753084940172,36.92,190.24,190.23,5.9367944]
[1753084940480,36.92,190.24,190.23,11.32277967]
[1753084940677,37.58,190.24,190.21,5.38598527]
[1753084940865,37.58,190.24,190.2,6.06598527]
[1753084941068,37.58,190.24,190.21,5.38598527]
[1753084941275,0.66,190.23,190.21,5.38598527]
[1753084941584,36.92,190.24,190.21,5.38598527]
[1753084941788,36.92,190.24,190.21,10.64698527]
[1753084941962,36.92,190.24,190.21,11.32698527]
[1753084942785,36.92,190.24,190.21,5.941]
[1753084942997,36.92,190.24,190.21,11.32698527]
[1753084943780,36.92,190.24,190.21,5.261]
[1753084944668,37.58,190.24,190.2,10.64340064]
[1753084945383,37.58,190.24,190.2,11.32340064]
[1753084945595,36.92,190.24,190.2,11.32340064]
[1753084945799,36.92,190.24,190.21,5.261]
[1753084946789,37.58,190.24,190.21,5.261]
[1753084946988,36.92,190.24,190.21,5.261]
[1753084949493,36.92,190.24,190.2,6.06598527]
[1753084949494,36.92,190.24,190.2,5.941]
[1753084949666,36.92,190.24,190.2,11.32698527]
[1753084950088,36.92,190.24,190.2,15.90459671]
[1753084950276,36.92,190.24,190.21,0.68]
[1753084950586,36.92,190.24,190.21,11.32698527]
[1753084950778,36.92,190.24,190.21,10.64698527]
[1753084951091,36.92,190.24,190.22,0.68]
[1753084951278,36.92,190.24,190.23,0.68]
[1753084951485,37.58,190.24,190.21,5.38598527]
[1753084951789,5.38598527,190.22,190.16,22.72341346]
[1753084951991,42.84598527,190.21,190.16,22.04341346]
[1753084952167,5.38598527,190.18,190.15,16.78468397]
[1753084952367,36.8,190.17,190.15,16.78468397]
[1753084954377,36.8,190.17,190.16,0.68]
[1753084954674,36.8,190.17,190.14,22.17066924]
[1753084955004,36.8,190.17,190.14,22.85066924]
[1753084955606,36.8,190.17,190.15,6.06598527]
[1753084955973,36.8,190.17,190.16,0.68]
[1753084956173,7.68458527,190.21,190.16,0.68]
[1753084956392,36.8,190.2,190.17,0.68]
[1753084957792,1.6386,190.21,190.18,0.68]
[1753084958090,36.8,190.19,190.18,0.68]
[1753084958302,36.8,190.19,190.17,5.38598527]
[1753084958499,36.8,190.19,190.17,16.78468397]
[1753084959706,37.46,190.19,190.15,0.68]
[1753084959875,37.46,190.19,190.15,16.78468397]
[1753084960303,37.46,190.19,190.15,0.68]
[1753084960683,0.66,190.18,190.12,16.78468397]
[1753084960888,11.60538527,190.16,190.11,5.291]
[1753084961105,37.46,190.15,190.11,5.291]
[1753084962000,36.8,190.15,190.11,0.03]
[1753084962192,6.82915924,190.13,190.11,0.03]
[1753084962398,36.8,190.12,190.11,0.03]
[1753084962702,1.5696,190.13,190.11,0.03]
[1753084962899,36.8,190.12,190.11,0.03]
[1753084963503,36.8,190.12,190.11,6.12598527]
[1753084963893,36.8,190.12,190.11,0.03]
[1753084967211,37.49,190.12,190.11,0.03]
[1753084967603,42.74983589,190.12,190.11,0.03]
[1753084967798,42.87598527,190.12,190.11,0.03]
[1753084968231,37.49,190.12,190.11,0.03]
[1753084969045,48.13582116,190.12,190.11,0.03]
[1753084969618,55.92592116,190.12,190.11,0.03]
[1753084969846,69.07551089,190.12,190.08,0.03]
[1753084970134,5.38598527,190.09,190.08,0.03]
[1753084970334,42.20598527,190.09,190.08,0.03]
[1753084970528,48.28197054,190.09,190.08,0.03]
[1753084970731,26.0,190.06,190.03,0.03]
[1753084971034,42.20598527,190.05,190.03,0.03]
[1753084971352,42.89598527,190.05,190.03,0.03]
[1753084971651,0.69,190.04,190.03,0.03]
[1753084971844,42.89598527,190.04,190.03,0.03]
[1753084972420,27.6282,190.03,189.98,0.2]
[1753084972753,5.38598527,189.99,189.98,0.2]
[1753084972952,42.20598527,189.99,189.98,0.2]
[1753084973116,48.15942018,189.99,189.98,0.2]
[1753084974138,42.89598527,189.99,189.98,0.2]
[1753084974350,48.15942018,189.99,189.98,0.2]
[1753084974552,42.77343491,189.99,189.98,0.2]
[1753084974840,42.89598527,189.99,189.98,0.2]
[1753084975139,48.15942018,189.99,189.98,0.2]
[1753084975839,8.0183,189.98,189.96,0.03]
[1753084976028,42.20598527,189.97,189.96,0.03]
[1753084976230,68.89598527,189.97,189.96,0.03]
[1753084976828,68.89598527,189.97,189.93,0.03]
[1753084976829,157.60765521,189.97,189.93,0.03]
[1753084977014,5.38598527,189.94,189.93,0.03]
[1753084977213,42.20598527,189.94,189.93,0.03]
[1753084977417,48.16080573,189.94,189.93,0.03]
[1753084977614,0.69,189.94,189.93,0.03]
[1753084977826,36.82,189.94,189.93,0.03]
[1753084978320,36.82,189.94,189.93,5.41598527]
[1753084978526,36.82,189.94,189.93,6.12598527]
[1753084979848,36.82,189.94,189.93,11.39108293]
[1753084980643,36.82,189.94,189.93,0.03]
[1753084980844,48.16080573,189.94,189.93,0.03]
[1753084984029,74.16080573,189.94,189.93,0.03]
[1753084984629,21.17808605,189.98,189.93,0.03]
[1753084984630,26.69,189.97,189.93,0.03]
[1753084984951,36.84,189.96,189.93,0.03]
[1753084985122,46.30997747,189.96,189.93,0.03]
[1753084985318,8.77997747,189.94,189.93,0.03]